Cogmind - Beta 15 @@@ ROGUE MODE // 2025.07.09 @ 19:27:26 Player: the Result: Destroyed by RA-9EY(j) with Overtuned Pulse Rifle Performance ------------- Evolutions (0) 0 Regions Visited (3) 600 Robots Destroyed (37) 185 Value Destroyed (813) 813 Prototype IDs (14) 280 Alien Tech Used (0) 0 Bonus (783) 783 TOTAL SCORE: 2661 Bonus ------- Registered with UFD 300 Met Optimus in HQ 500 Friendly Fire -17 Cogmind --------- Core Integrity 0/250 Matter 290/300 Energy 265/265 System Corruption 0% Temperature Warm (191) Movement Rolling (120) Ox2 Location -9/Scraptown Parts ------- > --- POWER (1) -------- Improved Ion Engine > --- PROPULSION (2) --- Armored Wheel Armored Wheel > --- UTILITY (2) ------ Disposable Heat Sink High-capacity Storage Unit > --- WEAPON (2) ------- Particle Cannon Particle Cannon > --- INVENTORY (20) --- Improved Ion Engine Improved Ion Engine Improved Ion Engine Improved Ion Engine Armored Wheel Armored Wheel Armored Wheel Thermal Generator Disposable Heat Sink Structural Scanner Experimental Terrain Scan Processor Seismic Detector Expert System Expert System Heavy EM Pulse Gun Pulse Rifle Ion Cannon Missile Launcher CPS Tube (2) Peak State ------------ > --- POWER ------------ Improved Ion Engine > --- PROPULSION ------- Armored Wheel Armored Wheel > --- UTILITY ---------- High-capacity Storage Unit A0-MCA's Component Scanner > --- WEAPON ----------- Particle Cannon Particle Cannon > --- INVENTORY -------- Improved Ion Engine Improved Ion Engine Improved Ion Engine Improved Ion Engine Armored Wheel Armored Wheel Armored Wheel Thermal Generator Improved Heat Sink Disposable Heat Sink Disposable Heat Sink Structural Scanner Experimental Terrain Scan Processor Seismic Detector Improved Particle Charger Heavy EM Pulse Gun Pulse Rifle Ion Cannon Missile Launcher CPS Tube [Rating: 25] Favorites ----------- Power Ion Engine Engine Ion Engine Propulsion Improved Treads Treads Improved Treads Wheel Armored Wheel Utility Large Storage Unit Device Subdweller Optics Storage Large Storage Unit Processor A0-MCA's Component Scanner Hackware Improved System Shield Protection Weapon Shielding Weapon Beam Cannon Energy Gun Subdweller Laser Energy Cannon Beam Cannon Ballistic Gun Assault Rifle Special Weapon Mining Laser Build | -11 -10 -10 -9 ------- Run | Yrd Mat Sub Scr Slots Evolved . | . . . . Power . | . . . . Propulsion . | . . . . Utility . | . . . . Weapon . | . . . . Parts Attached 46 | 7 16 12 11 Power 6 | 1 1 3 1 Engine 6 | 1 1 3 1 Core . | . . . . Reactor . | . . . . Propulsion 15 | 2 6 5 2 Treads 8 | 2 4 2 . Leg . | . . . . Wheel 7 | . 2 3 2 Hover . | . . . . Flight . | . . . . Utility 14 | 2 4 2 6 Device 7 | 1 2 1 3 Storage 3 | 1 1 . 1 Processor 1 | . . . 1 Hackware 1 | . . . 1 Protection 2 | . 1 1 . Artifact . | . . . . Weapon 11 | 2 5 2 2 Energy Gun 3 | . 2 1 . Energy Cannon 5 | . 2 1 2 Ballistic Gun 2 | 2 . . . Ballistic Cannon . | . . . . Launcher . | . . . . Special Weapon 1 | . 1 . . Impact Weapon . | . . . . Slashing Weapon . | . . . . Piercing Weapon . | . . . . Special Melee Weapon . | . . . . Unidentified Prototypes . | . . . . Parts Lost 3 | . . 2 1 Power 2 | . . 2 . Propulsion . | . . . . Utility 1 | . . . 1 Weapon . | . . . . Highest Loss Streak 1 | . . 1 1 To Critical Strikes . | . . . . Average Backups 14 | 3 12 14 15 Power 1 | . 1 1 1 Propulsion 3 | 1 3 4 2 Utility 4 | . 2 4 5 Weapon 4 | 1 4 4 4 Tool/Special . | . . . . Unused Backups 35 | . 7 2 26 Power 6 | . . . 6 Propulsion 4 | . . . 4 Utility 10 | . 1 2 7 Weapon 14 | . 6 . 8 Tool/Special 1 | . . . 1 Average Slot Usage (%) 96 | . 99 99 93 Engine 13 | . 14 13 12 Treads 12 | . 19 25 . Wheel 14 | . 8 2 27 Device 7 | . 14 4 7 Storage 14 | . 14 14 14 Protection 3 | . . 9 . Energy Gun 5 | . 2 4 8 Energy Cannon 20 | . 17 23 19 Ballistic Gun 1 | . 7 . . Peak Build Rating 25 | 7 11 15 25 Average Rating 12 | 5 9 11 15 On Entrance 8 | . 7 11 15 Naked Turns . | . . . . Heaviest Build 56 | 15 32 39 56 Greatest Support 46 | 40 46 46 40 Greatest Overweight (x) 3 | 2 3 1 2 Average Overweight (x) . | . . . . Largest Inventory Capacity 20 | 8 15 15 20 Average Capacity 15 | 7 13 15 17 Most Carried 20 | 8 15 15 20 Average Carried 14 | 3 12 14 15 Final Capacity 20 | 8 15 15 20 Final Carried 19 | 6 15 15 19 Class Distribution -------------------- 81% | Mutant 18% | Scavenger-Mutant Dominant Class ---------------- Mutant | -10/Materials Mutant | -10/Subcaves Mutant | -9/Scraptown Resources | -11 -10 -10 -9 ----------- Run | Yrd Mat Sub Scr Matter Collected 1056 | 296 438 159 163 Remotely . | . . . . Salvage Created 1455 | 130 578 492 255 Parts 96 | 11 49 24 12 Haulers Intercepted 2 | . 2 . . Recyclers Shooed . | . . . . Parts Field Recycled . | . . . . Retrieved Matter . | . . . . Parts Self-Destructed 14 | . . 14 . Prevented . | . . . . Kills | -11 -10 -10 -9 ------- Run | Yrd Mat Sub Scr Combat Hostiles Destroyed 22 | . 9 9 4 Guns 8 | . 8 . . Cannons 14 | . 1 9 4 Classes Destroyed 13 | 2 7 2 2 Worker 2 | . 2 . . Builder 2 | . 2 . . Tunneler 3 | 3 . . . Hauler 2 | . 2 . . Recycler 2 | 1 1 . . Operator 1 | . 1 . . Turret 2 | . . 2 . Watcher 1 | . 1 . . Swarmer 7 | . 4 3 . Grunt 5 | . 5 . . Subdweller 6 | . . 6 . Ranger 1 | . . . 1 Scrapper 3 | . . . 3 Best Kill Streak 7 | 4 7 5 3 Combat Bots Only 5 | . 5 3 3 Max Kills in Single Turn 2 | 1 2 1 1 Gunslinging 1 | . 1 . . Exploded . | . . . . Melee . | . . . . Uniques/NPCs Destroyed . | . . . . Combat | -11 -10 -10 -9 -------- Run | Yrd Mat Sub Scr Hostile Shots Fired 145 | . 38 80 27 Missed 46 | . 15 29 2 Hits 99 | . 23 51 25 Melee 2 | . . . 2 Projectile 97 | . 23 51 23 Critical Strikes 2 | . . . 2 Damage Taken 1368 | . 219 742 407 Core 252 | . 17 120 115 Absorbed by Shields . | . . . . Redirected to Shielding 62 | . . 62 . Core Remaining (%) 100 | 100 . . . Volleys Fired 119 | 9 45 51 14 Largest 2 | 2 2 2 2 Hottest 140 | 40 120 140 136 Shots Fired 231 | 18 84 101 28 Gun 79 | 18 59 2 . Cannon 143 | . 18 97 28 Launcher . | . . . . Special 9 | . 7 2 . Kinetic 75 | 18 57 . . Thermal 156 | . 27 101 28 Explosive . | . . . . Electromagnetic . | . . . . Robot Hit Streak 16 | 6 8 16 7 Robot Miss Streak 4 | 3 3 4 2 Penetration Max . | . . . . Secondary Targets 3 | . 3 . . Max Gunslinging Chain 1 | . 1 . . Shots Hit Robots 144 | 11 48 69 16 Core Hits 60 | 4 24 24 8 Critical Kills . | . . . . Critical Parts Destroyed . | . . . . Critical Strikes . | . . . . Melee Attacks . | . . . . Impact . | . . . . Slashing . | . . . . Piercing . | . . . . Sneak Attacks . | . . . . Combat Hostiles . | . . . . Follow-up Attacks . | . . . . Damage Inflicted 2489 | 147 728 1265 349 Guns 720 | 147 551 22 . Cannons 1769 | . 177 1243 349 Explosions . | . . . . Melee . | . . . . Ramming . | . . . . Kinetic 698 | 147 551 . . Thermal 1791 | . 177 1265 349 Explosive . | . . . . Electromagnetic . | . . . . Impact . | . . . . Slashing . | . . . . Piercing . | . . . . Highest Corruption 2 | . 2 2 . Average Corruption 2 | . 2 2 . Corruption Purged . | . . . . Corruption Blocked . | . . . . Effects 39 | . 7 32 . Message Errors 7 | . 1 6 . Matter Fused 9 | . 3 6 . Heat Flow Errors 9 | . 1 8 . Energy Discharges 4 | . . 4 . Parts Fused 1 | . . 1 . Data Loss (minor) 4 | . . 4 . Data Loss (major) 2 | . . 2 . Misfires 2 | . 1 1 . Alerts 1 | . 1 . . Overload Shots . | . . . . Overflow Damage 6 | . 6 . . Projectiles 6 | . 6 . . Explosions . | . . . . Melee . | . . . . Knockbacks . | . . . . Impact . | . . . . Kinetic . | . . . . Secondary . | . . . . Self-Inflicted Damage . | . . . . Shots . | . . . . Rammed . | . . . . Targets Rammed . | . . . . Kicked . | . . . . Crushed . | . . . . Highest Temperature 326 | . 180 319 326 Average Temperature 84 | . 58 84 136 Received Heat Transfer 470 | . 72 216 182 Effects 2 | . . 2 . Energy Bleed 1 | . . 1 . Short Circuit 1 | . . 1 . Siege Activations . | . . . . Martial Activations . | . . . . Shielding Activations . | . . . . Robots Disrupted . | . . . . Combat Hostiles . | . . . . Robots Corrupted . | . . . . Combat Hostiles . | . . . . Parts Fried . | . . . . Impact Corruptions . | . . . . Robots Melted . | . . . . Combat Hostiles . | . . . . Parts Melted 8 | . . 6 2 Heat Transferred 3482 | . 370 2615 497 Parts Sabotaged . | . . . . Parts Stolen . | . . . . Parts Stripped . | . . . . Power Chain Reactions . | . . . . Alert | -11 -10 -10 -9 ------- Run | Yrd Mat Sub Scr Maximum Alert Level . | . . . . Low Security (%) 100 | 100 100 . . Level 1 . | . . . . Level 2 . | . . . . Level 3 . | . . . . Level 4 . | . . . . Level 5 . | . . . . High Security . | . . . . Max Security . | . . . . Peak Influence 162 | 10 162 . . Initial . | . . . . Average 40 | . 44 . . Influence Increases 493 | 20 313 160 . Destroy 0b10 Robot/C 280 | . 180 100 . Destroy 0b10 Robot/NC 65 | 20 45 . . Destroy Leader 46 | . 46 . . Successful Hack 20 | . 20 . . Destroy Structure 7 | . 7 . . Lose Combat Pursuer 75 | . 15 60 . Influence Decreases 493 | 20 313 160 . Time Decay 483 | 20 313 150 . Lost Part 10 | . . 10 . Squads Dispatched 4 | . 4 . . Investigation 2 | . 2 . . Extermination . | . . . . Reinforcement 2 | . 2 . . Assault . | . . . . Garrison . | . . . . Intercept . | . . . . Searches Triggered . | . . . . Construction Impeded . | . . . . Haulers Reinforced . | . . . . Active Scanning Responses . | . . . . Cargo Convoy Interrupts . | . . . . Stealth | -11 -10 -10 -9 --------- Run | Yrd Mat Sub Scr Distress Signals . | . . . . Communications Jammed . | . . . . Distress Signals . | . . . . Times Spotted 35 | . 14 14 7 Peak Tracking Total 6 | . 3 6 4 Tactical Retreats 3 | . 1 2 . Traps | -11 -10 -10 -9 ------- Run | Yrd Mat Sub Scr Traps Triggered 1 | . 1 . . Indirectly . | . . . . Trap Hack Attempts . | . . . . Triggered . | . . . . Disarmed . | . . . . Reprogrammed . | . . . . Reused . | . . . . Traps Extracted . | . . . . Installed . | . . . . Triggered . | . . . . Machines | -11 -10 -10 -9 ---------- Run | Yrd Mat Sub Scr Machines Disabled 1 | . . . 1 Max in Single Turn 1 | . . . 1 Machines Repaired . | . . . . Machines Dismantled . | . . . . Machines Sabotaged . | . . . . Overloaded Fab Kills . | . . . . Hacking | -11 -10 -10 -9 --------- Run | Yrd Mat Sub Scr Machines Accessed 8 | . 6 . 2 Terminals 4 | . 4 . . Fabricators . | . . . . Repair Stations . | . . . . Recycling Units 2 | . 2 . . Scanalyzers . | . . . . Garrison Access . | . . . . Total Hacks 21 | . 16 . 5 Successful 12 | . 7 . 5 Failed 8 | . 8 . . Catastrophic 3 | . 3 . . Database Lockouts 1 | . 1 . . Manual 5 | . 5 . . Terminals 14 | . 14 . . Fabricators . | . . . . Repair Stations . | . . . . Recycling Units 2 | . 2 . . Scanalyzers . | . . . . Garrison Access . | . . . . Terminal Hacks 8 | . 3 . 5 Record 5 | . . . 5 Robot Analysis 1 | . 1 . . Alert Level 1 | . 1 . . Hauler Manifests 1 | . 1 . . Fabricator Hacks . | . . . . Repair Station Hacks . | . . . . Recycling Unit Hacks 2 | . 2 . . Retrieve Components 2 | . 2 . . Scanalyzer . | . . . . Garrison Access Hacks . | . . . . Unauthorized Hacks 1 | . 1 . . Terminals 1 | . 1 . . Botnet 1 | . 1 . . Fabricators . | . . . . Repair Stations . | . . . . Recycling Units . | . . . . Scanalyzers . | . . . . Garrison Access . | . . . . Data Cores Recovered . | . . . . Used . | . . . . Hacking Detections 4 | . 4 . . Full Trace Events . | . . . . Feedback Events . | . . . . Feedback Blocked . | . . . . Robot Schematics Acquired . | . . . . Robots Built . | . . . . Authchips . | . . . . Time . | . . . . Total Robot Build Rating . | . . . . Part Schematics Acquired . | . . . . Parts Built . | . . . . Authchips . | . . . . Time . | . . . . Total Part Build Rating . | . . . . Parts Repaired . | . . . . Time . | . . . . Parts Recycled . | . . . . Recycled Matter . | . . . . Retrieved Matter . | . . . . Retrieved Components 20 | . 20 . . Parts Scanalyzed . | . . . . Part Schematics Acquired . | . . . . Parts Damaged . | . . . . Bothacking | -11 -10 -10 -9 ------------ Run | Yrd Mat Sub Scr Used RIF Installer . | . . . . Robots Hacked . | . . . . Non-combat . | . . . . Combat . | . . . . Robot Hacks Applied . | . . . . Relay Couplers Released . | . . . . Fabnet Peak Effective % . | . . . . Robots Rewired . | . . . . Allies Hacked . | . . . . Hacks Repelled . | . . . . Allies | -11 -10 -10 -9 -------- Run | Yrd Mat Sub Scr Total Allies . | . . . . Largest Group . | . . . . Highest-Rated Group . | . . . . Highest-Rated Ally . | . . . . Total Orders . | . . . . Ally Attacks . | . . . . Total Damage . | . . . . Kills . | . . . . Allies Corrupted . | . . . . Allies Melted 2 | . . . 2 Intel | -11 -10 -10 -9 ------- Run | Yrd Mat Sub Scr Active Infowar (turns) 3118 | 32 1132 821 1133 Optics 1690 | . . 557 1133 Structural 33 | . 33 . . Seismic 1395 | 32 1099 264 . Robot Analysis Total 1 | . 1 . . Derelict Logs Recovered 6 | . . 1 5 Drone Launches . | . . . . Drone Recoveries . | . . . . Exploration | -11 -10 -10 -9 ------------- Run | Yrd Mat Sub Scr Turns Passed 6563 | 110 1134 2378 2941 Spaces Moved 4386 | 43 671 1414 2258 Core 7 | 7 . . . Treads 1669 | 36 417 1216 . Legs . | . . . . Wheels 2710 | . 254 198 2258 Hover . | . . . . Flight . | . . . . Fastest Speed 50 | 50 95 110 105 Average Speed 128 | 150 135 153 111 Slowest Speed 160 | 160 160 160 120 Overloaded Moves . | . . . . Propulsion Burnouts . | . . . . Robots Hopped . | . . . . Potential Cave-ins . | . . . . Cave-ins Triggered . | . . . . Exploration Rate (%) 67 | 4 99 75 91 Regions Visited 3 Branch Regions 2 Pre-discovered Areas 4 | . . 1 3 Known Exits Taken . | . . . . Unknown Exits Taken 3 | 1 1 1 . Scrap Searched 4 | . . . 4 Spaces Dug 5 | . 5 . . Terrain Destroyed 7 | . 7 . . Melee . | . . . . Projectile 7 | . 7 . . AOE . | . . . . Terrain Rammed . | . . . . Walls Destroyed . | . . . . Machines Disabled . | . . . . Actions | -11 -10 -10 -9 --------- Run | Yrd Mat Sub Scr Total 5059 | 68 802 1522 2667 Wait 387 | . 27 22 338 Move 4383 | 42 670 1413 2258 Hop . | . . . . Pick Up 56 | 8 18 7 23 Fast Attach 22 | 7 5 4 6 Attach 10 | . 2 3 5 Detach 3 | . 2 . 1 Swap 26 | . 15 10 1 Drop 53 | 2 18 12 21 Fire 119 | 9 45 51 14 Melee . | . . . . Ram . | . . . . Kick . | . . . . Crush . | . . . . Escape Stasis . | . . . . Rewire . | . . . . Trap . | . . . . Miscellaneous . | . . . . Route ------- -11/Scrapyard -10/Materials (discovered 5 exits: [*Mat x3] / [*Min] / [*Sub]) -10/Subcaves (discovered 3 exits: [*Mat] / [*Rec] / *Scr) -9/Scraptown (discovered 1 exit: [*Fac]) History --------- Turn | Location | Event 24 | -11/Scrapyard | Discovered new exit (range 15) 111 | -11/Scrapyard | Entered Materials 312 | -10/Materials | Build established: Mutant 476 | -10/Materials | Central database locked down 483 | -10/Materials | Discovered new exit (range 3) 770 | -10/Materials | Discovered new exit (range 14) 884 | -10/Materials | Discovered new exit (range 7) 1038 | -10/Materials | Discovered new exit (range 13) 1216 | -10/Materials | Discovered new exit (range 7) 1245 | -10/Materials | Entered Subcaves 1246 | -10/Subcaves | Approached by a straggling Scientist 1635 | -10/Subcaves | Discovered new exit (range 15) 1815 | -10/Subcaves | Learned location of Zion (-6) 1815 | -10/Subcaves | Met a Zionite searching for "candidates" 1978 | -10/Subcaves | Scientist uncovered a shortcut to Scraptown 2043 | -10/Subcaves | Shifting Twisted Machinery released Sub. Monowheel 2074 | -10/Subcaves | Shifting Twisted Machinery released Sub. Optics 2341 | -10/Subcaves | Core integrity fell below 50% 3314 | -10/Subcaves | Discovered new exit (range 14) 3613 | -10/Subcaves | Build established: Scavenger-Mutant 3623 | -10/Subcaves | Entered Scraptown 3623 | -9/Scraptown | System corruption cleaned by C-Scrubber 3710 | -9/Scraptown | Heard Great Nut preacher, LISTEN AND RECITE! 3917 | -9/Scraptown | Scanned Subdweller tech in exchange for log data 3920 | -9/Scraptown | Learned location of Armory (-3) 3921 | -9/Scraptown | Learned Factory machine intel 3923 | -9/Scraptown | Learned Factory emergency access door positions 3924 | -9/Scraptown | Learned location of 2 exits from Proximity Caves 3925 | -9/Scraptown | Learned location of Quarantine (-2) 4204 | -9/Scraptown | Visited IN-MT5's Study 4224 | -9/Scraptown | Visited Cave Peace 4260 | -9/Scraptown | Visited TADAMA 4311 | -9/Scraptown | Visited UFD Registry 4311 | -9/Scraptown | Registered with UFD as "Smoothninja" 4371 | -9/Scraptown | Discovered new exit (range 13) 4394 | -9/Scraptown | Guru changed UFD alias to "Gaussplate" 4523 | -9/Scraptown | Visited LU-1G1's Boring Crew 4539 | -9/Scraptown | Visited Curators Association 4582 | -9/Scraptown | Visited Chapter 10 4643 | -9/Scraptown | Delivered Scrap Shield to a Scientist 4711 | -9/Scraptown | Visited DA-N13 Charitable Foundation 4721 | -9/Scraptown | Found DCF Scrap (27 items) 4750 | -9/Scraptown | Visited Infowarlord's Domain 4773 | -9/Scraptown | Visited Abandonware Association 4785 | -9/Scraptown | Learned abandonware demo "TRNCOAT.EXE" 4803 | -9/Scraptown | Visited Derelict Rescue Squad 4815 | -9/Scraptown | Build established: Mutant 4823 | -9/Scraptown | Visited Junk Repository 4865 | -9/Scraptown | Visited A0-MCA Data Center 4881 | -9/Scraptown | Visited Research Penetration Think Tank 5435 | -9/Scraptown | Found Exp. Terrain Scan Processor 5887 | -9/Scraptown | Given a B- rating by A0-MCA 5890 | -9/Scraptown | Found A0-MCA's Component Scanner 6069 | -9/Scraptown | Met Optimus 6069 | -9/Scraptown | Accepted into 0bPrime 6469 | -9/Scraptown | Civil war broke out across Scraptown 6474 | -9/Scraptown | Found Expert System 6480 | -9/Scraptown | Found Expert System 6547 | -9/Scraptown | Core integrity fell below 20% 6564 | -9/Scraptown | Destroyed by RA-9EY(j) with Overtuned Pulse Rifle Last Messages --------------- 06517_ ZF-88V(E): "It's not too late to join us in victory!" 06529_ RA-9EY(j): "I'm having second thoughts about this." 06536_ 6L-8AK(x) switches sides. 06537_ Bolt penetrates 6L-8AK(x). 06539_ 2A-7AK(j) destroyed. 06540_ Bolt penetrates 6L-8AK(x). 06544_ LO-IMV(j) heat spikes uncontrollably. 06544_ LO-IMV(j) overheating. 06545_ 6L-8AK(x) destroyed. 06547_ Penetrated by Bolt. 06548_ LO-IMV(j) destroyed. 06550_ Penetrated by Bolt. 06550_ Imp. Heat Sink destroyed. 06550_ Penetrated by Bolt. 06558_ Critical hit (Burn: +50). 06558_ Penetrated by Bolt. 06559_ Critical hit (Burn: +50). 06561_ U8-E5I(h) destroyed. Map ----- +----------------------------------------------------+ | | | | | | | | | | | | | ?????????????????????????????????????????????????? | | ?????????????????????????????????????????????????? | | ?????????????????????????????????????????????????? | | ?????????????????????????????????????????????????? | | ?????????????????????????????????????????????????? | | ?????????????????????????????????????????????????? | | ?????????????????????????????????????????????????? | | ?????????????????????????????????????????????????? | | ?????????????????????????????????????????????????? | | ?????????????????????????????????????????????????? | | ?????????????????????????????????????????????????? | | ?????????????????????????????????????????????????? | | ?????????????????????????????????????????????????? | | ???????????????????????####??????????????????????? | | ??????????????????????## ##?????????????????????? | | ??????????????????"#### [######????????????????? | | ??????????????????? =!! *!jj%! ?????????????????? | | ?????????????????????%=%=[=!!%???????????????????? | | ??????????????????????#! !%;?????????????????????? | | ???????????????????????# @#??????????????????????? | | ???????????????????????# #??#######?????????????? | | ??#########????????????# #?"""""""#?????????????? | | ?#"""""""""#???????????# #" "&&& "#?????????????? | | ?#"""""""""#???????????# #" "#?????????????? | | ?#"""""""""#???????????# #"" ""#?????????????? | | ?#"""" """"#???????????# #" "#?????????????? | | ?#"" """############# #"" ""#?????????????? | | ?#""" ""## !#|]]# ## #" "#?????????????? | | ?#""" "## *# !!# !## #"" ""#?????????????? | | ?#"""" """## # # ## # #?????????????? | | ?#""" %"""## ## # #?????????????? | | ?#" ! ## ## # #?????????????? | | ?##### ##"######## ##### ## #######?????????????? | | ###### ###"####### ##### ## #############???????? | | """""" """" """""" """"" " "## "#???????? | | ! ## ""#???????? | | [=!"## """" "#???????? | | =[%==## "### "#???????? | | !!!%## "#X ""#???????? | | [!%[= "### "#???????? | | """"""""""""""""" """""" !%## """" "#???????? | | """""""""""""""""""""""" !## *% ""#???????? | | #### ################"" ## == "#???????? | | ##????????#"" "############???????? | +----------------------------------------------------+ Best States ------------- Heat Dissipation 39 Coolant Potential 50 Energy Generation 15 Energy Capacity 265 Matter Stores 300 Matter Capacity 300 Sight Range 21 Terrain Scan Density 10 Weapon Shielding 33 Evasion (%) 41 Recoil Reduction 2 Defensive Hacking 12 Item Schematics ----------------- None Robot Schematics ------------------ None Fabricated ------------ Nothing Repaired ---------- Nothing Alien Tech Used ----------------- None Achievements -------------- None Challenges ------------ None Game ------ Seed NavigationAblativeUnit Manual? 0 Play Time 00:50:46 Cumulative 182.8 hours Start 2025.07.09 @ 18:35:20 End 2025.07.09 @ 19:27:26 Sessions 1 Manual Loads 0 Difficulty Rogue Special Mode None Game No. 130 Rogue 130 Adventurer 0 Explorer 0 Win Type - Total 2 Types 2/0/0/0/0/0/0/0/0/0 Lore% 62 Gallery% 57 Achievement% 50 Wizard Run 0 Options --------- Layout 1 ASCII 0 Keyboard 0 Movement Numpad Keybinds 0 Fullscreen 1 Font 32/SmallcapsGlow Map View 50x35 Zoom Use 0% Tactical HUD 1 Map Filters NONE Filters NONE Steam 1 RUN: 2edea9c8-a7da-4b2e-8a6c-0a986c759ee4